[Event "FRA-ch Teams Top 16-Bas 2022"]
[Site "Chartres"]
[Date "2022.06.19"]
[Round "11.31"]
[White "Roubert, Emile"]
[Black "Mendeiros, Jerome"]
[Result "1/2-1/2"]
[ECO "B10"]
[WhiteElo "2027"]
[BlackElo "2097"]
[Annotator "NA RC"]
[PlyCount "147"]
[EventDate "2022.06.16"]
[EventType "team-tourn"]
[EventCountry "FRA"]
[SourceTitle "playchess.com"]
[Source "ChessBase"]
[SourceQuality "1"]
[TimeControl "40/5400+30:1800+30"]

1. e4 {[%emt 0:00:04]} c6 {[%emt 0:00:08]} 2. c4 {[%emt 0:00:07]} d5 {[%emt 0:00:06]} 3. cxd5 {[%emt 0:00:08]} cxd5 {[%emt 0:00:05]} 4. exd5 {[%emt 0:00:10]} Nf6 {[%emt 0:00:06]} 5. Nc3 {[%emt 0:00:09]} Nxd5 {[%emt 0:00:24]} 6. Nf3 {[%emt 0:00:12]} Nc6 {[%emt 0:00:14]} 7. Bb5 {[%emt 0:00:06]} g6 {[%emt 0:00:21]} 8. O-O {[%emt 0:01:53]} Bg7 {[%emt 0:00:13]} 9. Qa4 {[%emt 0:05:36]} Qd6 {[%emt 0:04:37]} 10. Re1 {[%emt 0:19:59]} Bd7 {[%emt 0:11:45]} 11. Qh4 {[%emt 0:05:56]} O-O {[%emt 0:09:23]} 12. d4 {[%emt 0:13:45]} Nf6 {[%emt 0:31:47]} 13. a3 {[%emt 0:07:12]} Bg4 {[%emt 0:03:43]} 14. Ne5 {[%emt 0:06:29]} Be6 {[%emt 0:02:34]} 15. Bf4 {[%emt 0:17:16]} Qxd4 {[%emt 0:05:31]} 16. Nxc6 {[%emt 0:01:59]} bxc6 {[%emt 0:00:25]} 17. Bxc6 {[%emt 0:00:07]} Rac8 {[%emt 0:03:21]} 18. Bf3 {[%emt 0:05:14]} Rc4 {[%emt 0:01:37]} 19. g3 {[%emt 0:02:26]} h6 {[%emt 0:05:28]} 20. Rxe6 {[%emt 0:00:28]} fxe6 {[%emt 0:01:22]} 21. Qh3 {[%emt 0:00:27]} Kf7 {[%emt 0:00:47]} 22. Re1 {[%emt 0:00:33]} Qd7 {[%emt 0:01:22]} 23. Qf1 {[%emt 0:01:41]} Rfc8 {[%emt 0:01:31]} 24. Qe2 {[%emt 0:00:46]} Ne8 {[%emt 0:08:28]} 25. Bg4 {[%emt 0:02:53]} R8c6 {[%emt 0:00:32]} 26. Ne4 {[%emt 0:01:54]} Rc2 {[%emt 0:00:52]} 27. Qf3 {[%emt 0:00:16]} Nf6 {[%emt 0:00:22]} 28. b4 {[%emt 0:02:36]} Nxg4 {[%emt 0:01:10]} 29. Qxg4 {[%emt 0:00:22]} Qd5 {[%emt 0:00:37]} 30. Nc5 {[%emt 0:00:48]} Qf5 {[%emt 0:01:50]} 31. Qd1 {[%emt 0:00:23]} g5 {[%emt 0:00:47]} 32. g4 {[%emt 0:01:29]} Qg6 {[%emt 0:00:51]} 33. Bg3 {[%emt 0:00:30]} R6xc5 {[%emt 0:01:48]} 34. bxc5 {[%emt 0:00:06]} Rxc5 {[%emt 0:00:21]} 35. Qa4 {[%emt 0:01:20]} a5 {[%emt 0:01:04]} 36. h3 {[%emt 0:00:57]} Qc2 {[%emt 0:00:56]} 37. Qd7 {[%emt 0:00:33]} Qc4 {[%emt 0:00:18]} 38. Bd6 {[%emt 0:00:29]} Rc6 {[%emt 0:01:53]} 39. Qxe7+ {[%emt 0:00:15]} Kg8 {[%emt 0:00:07]} 40. Bg3 {[%emt 0:01:11]} Qd5 {[%emt 0:00:57]} 41. Qe8+ {[%emt 0:01:45]} Kh7 {[%emt 0:01:45]} 42. Qf7 {[%emt 0:04:29]} Rb6 {[%emt 0:01:54]} 43. a4 {[%emt 0:10:40]} Rb4 {[%emt 0:03:44]} 44. Kh2 {[%emt 0:03:26]} Rb7 {[%emt 0:01:07]} 45. Qe8 {[%emt 0:02:16]} Qd7 {[%emt 0:01:37]} 46. Qa8 {[%emt 0:00:27]} Rb3 {[%emt 0:04:43]} 47. Rc1 {[%emt 0:03:46]} Qd5 {[%emt 0:12:30]} 48. Qxd5 {[%emt 0:02:24]} exd5 {[%emt 0:00:06]} 49. Rc5 {[%emt 0:00:03]} Bc3 {[%emt 0:01:48]} 50. Bc7 {[%emt 0:02:00]} d4 {[%emt 0:03:22]} 51. Bxa5 {[%emt 0:00:49]} Bxa5 {[%emt 0:03:41]} 52. Rxa5 {[%emt 0:00:05]} d3 {[%emt 0:00:00]} 53. Rd5 {[%emt 0:00:53]} Ra3 {[%emt 0:00:00]} 54. Kg2 {[%emt 0:00:28]} Rxa4 {[%emt 0:00:00]} 55. Rxd3 {[%emt 0:00:06]} Ra7 {[%emt 0:00:00]} 56. Rd5 {[%emt 0:02:10]} Kg7 {[%emt 0:00:00]} 57. Rf5 {[%emt 0:00:54]} Kg6 {[%emt 0:00:00]} 58. h4 {[%emt 0:00:34]} Ra3 {[%emt 0:00:27]} 59. f3 {[%emt 0:00:33]} Ra1 {[%emt 0:00:13]} 60. Rb5 {[%emt 0:00:57]} Ra6 {[%emt 0:00:26]} 61. h5+ {[%emt 0:00:54]} Kg7 {[%emt 0:00:21]} 62. Kf2 {[%emt 0:00:20]} Re6 {[%emt 0:00:22]} 63. Rb4 {[%emt 0:00:52]} Kf6 {[%emt 0:00:56]} 64. Re4 {[%emt 0:00:47]} Ra6 {[%emt 0:00:24]} 65. Rc4 {[%emt 0:00:40]} Kg7 {[%emt 0:01:24]} 66. Ke3 {[%emt 0:00:18]} Rf6 {[%emt 0:00:25]} 67. Rc7+ {[%emt 0:00:24]} Kg8 {[%emt 0:00:10]} 68. Rc5 {[%emt 0:00:22]} Kg7 {[%emt 0:00:27]} 69. Rf5 {[%emt 0:01:03]} Re6+ {[%emt 0:00:17]} 70. Kd4 {[%emt 0:00:05]} Re7 {[%emt 0:00:33]} 71. Kd5 {[%emt 0:00:15]} Re3 {[%emt 0:00:24]} 72. Kd6 {[%emt 0:00:38]} Ra3 {[%emt 0:00:48]} 73. Ke6 {[%emt 0:01:11]} Ra6+ {[%emt 0:00:14]} 74. Ke7 {[%emt 0:02:11]} 1/2-1/2

[Event "FRA-ch Teams Top 16-Bas 2022"]
[Site "Chartres"]
[Date "2022.06.19"]
[Round "11.32"]
[White "Coriat, Caroline"]
[Black "Gennesseaux, Gabrielle"]
[Result "1-0"]
[ECO "D05"]
[WhiteElo "1752"]
[BlackElo "1794"]
[Annotator "NA RC"]
[PlyCount "89"]
[EventDate "2022.06.16"]
[EventType "team-tourn"]
[EventCountry "FRA"]
[SourceTitle "playchess.com"]
[Source "ChessBase"]
[SourceQuality "1"]
[TimeControl "40/5400+30:1800+30"]

1. Nf3 {[%emt 0:02:54]} e6 {[%emt 0:02:14]} 2. d4 {[%emt 0:00:11]} Nf6 {[%emt 0:00:44]} 3. e3 {[%emt 0:00:12]} c5 {[%emt 0:02:02]} 4. Bd3 {[%emt 0:00:46]} Nc6 {[%emt 0:01:40]} 5. Nbd2 {[%emt 0:00:26]} d5 {[%emt 0:04:13]} 6. c3 {[%emt 0:01:08]} Bd6 {[%emt 0:01:20]} 7. O-O {[%emt 0:00:43]} O-O {[%emt 0:00:51]} 8. Re1 {[%emt 0:02:27]} c4 {[%emt 0:16:11]} 9. Bc2 {[%emt 0:03:23]} b5 {[%emt 0:05:28]} 10. e4 {[%emt 0:02:29]} dxe4 {[%emt 0:01:38]} 11. Nxe4 {[%emt 0:07:40]} Be7 {[%emt 0:04:05]} 12. Qe2 {[%emt 0:07:44]} a6 {[%emt 0:11:59]} 13. Nxf6+ {[%emt 0:01:23]} Bxf6 {[%emt 0:00:08]} 14. Qe4 {[%emt 0:00:21]} g6 {[%emt 0:01:47]} 15. Qxc6 {[%emt 0:00:30]} Rb8 {[%emt 0:01:23]} 16. Bf4 {[%emt 0:06:59]} Rb6 {[%emt 0:02:57]} 17. Qc7 {[%emt 0:03:00]} Bb7 {[%emt 0:05:26]} 18. Qxd8 {[%emt 0:00:21]} Bxd8 {[%emt 0:00:04]} 19. Be4 {[%emt 0:05:00]} a5 {[%emt 0:01:37]} 20. Bxb7 {[%emt 0:00:33]} Rxb7 {[%emt 0:00:05]} 21. Bd6 {[%emt 0:00:53]} Re8 {[%emt 0:00:18]} 22. a3 {[%emt 0:04:02]} Bb6 {[%emt 0:02:08]} 23. Rad1 {[%emt 0:01:15]} Rd8 {[%emt 0:00:49]} 24. Be5 {[%emt 0:02:55]} Kf8 {[%emt 0:03:33]} 25. Bf6 {[%emt 0:45:45]} Rc8 {[%emt 0:00:58]} 26. d5 {[%emt 0:00:00]} exd5 {[%emt 0:00:43]} 27. Rxd5 {[%emt 0:00:00]} Bc5 {[%emt 0:04:30]} 28. Red1 {[%emt 0:00:00]} Rbb8 {[%emt 0:00:44]} 29. Rd8+ {[%emt 0:00:00]} Rxd8 {[%emt 0:00:11]} 30. Rxd8+ {[%emt 0:00:00]} Rxd8 {[%emt 0:00:07]} 31. Bxd8 {[%emt 0:00:00]} a4 {[%emt 0:01:31]} 32. Ba5 {[%emt 0:00:00]} Ke8 {[%emt 0:00:20]} 33. Nd4 {[%emt 0:00:00]} Bxd4 {[%emt 0:00:22]} 34. cxd4 {[%emt 0:00:00]} Ke7 {[%emt 0:00:43]} 35. Kf1 {[%emt 0:00:00]} Ke6 {[%emt 0:02:24]} 36. Ke2 {[%emt 0:00:00]} Kd5 {[%emt 0:02:43]} 37. Bc3 {[%emt 0:00:00]} Ke4 {[%emt 0:02:34]} 38. f3+ {[%emt 0:00:00]} Kd5 {[%emt 0:01:13]} 39. Ke3 {[%emt 0:00:00]} h5 {[%emt 0:06:06]} 40. h4 {[%emt 0:00:00]} f6 {[%emt 0:01:08]} 41. Kf4 {[%emt 0:00:00]} Kd6 {[%emt 0:31:21]} 42. Ke4 {[%emt 0:04:40]} Ke6 {[%emt 0:00:26]} 43. d5+ {[%emt 0:01:09]} Ke7 {[%emt 0:00:31]} 44. Bb4+ {[%emt 0:00:29]} Kd7 {[%emt 0:00:46]} 45. Kd4 {[%emt 0:00:18]} 1-0